Cogmind - Beta 13 @@@ ROGUE MODE // 2024.04.05 @ 15:54:43 Player: Pepsi Result: Destroyed by 8R-AWN with 8R-AWN's Boregun Performance ------------- Evolutions (0) 0 Regions Visited (3) 600 Robots Destroyed (23) 115 Value Destroyed (406) 406 Prototype IDs (0) 0 Alien Tech Used (0) 0 Bonus (0) 0 TOTAL SCORE: 1121 Bonus ------- None Cogmind --------- Core Integrity 0/250 Matter 300/300 Energy 99/100 System Corruption 1% Temperature Cool (0) Movement Core (50) Location -10/Exiles Parts ------- > --- POWER (1) -------- (None) > --- PROPULSION (2) --- (None) > --- UTILITY (2) ------ Signal Interpreter > --- WEAPON (2) ------- (None) > --- INVENTORY (5) ---- Ion Engine Authchip [Processor] Grenade Launcher Rocket Launcher Peak State ------------ > --- POWER ------------ Light Ion Engine > --- PROPULSION ------- Aluminum Leg Aluminum Leg > --- UTILITY ---------- Terrain Scanner ECM Suite > --- WEAPON ----------- Assault Rifle Light Assault Rifle > --- INVENTORY -------- Ion Engine Aluminum Leg EM Pulse Gun Assault Rifle Grenade Launcher [Rating: 7] Favorites ----------- Power Ion Engine Engine Ion Engine Propulsion Aluminum Leg Leg Aluminum Leg Utility Signal Interpreter Device ECM Suite Processor Signal Interpreter Weapon Assault Rifle Energy Gun EM Pulse Gun Ballistic Gun Assault Rifle Launcher Grenade Launcher Build | -11 -10 -10 -10 ------- Run | Yrd Mat Min Exi Slots Evolved . | . . . . Power . | . . . . Propulsion . | . . . . Utility . | . . . . Weapon . | . . . . Parts Attached 17 | 3 12 1 1 Power 2 | 1 1 . . Engine 2 | 1 1 . . Core . | . . . . Reactor . | . . . . Propulsion 6 | 1 3 1 1 Treads . | . . . . Leg 6 | 1 3 1 1 Wheel . | . . . . Hover . | . . . . Flight . | . . . . Utility 3 | . 3 . . Device 2 | . 2 . . Storage . | . . . . Processor 1 | . 1 . . Hackware . | . . . . Protection . | . . . . Artifact . | . . . . Weapon 6 | 1 5 . . Energy Gun 1 | . 1 . . Energy Cannon . | . . . . Ballistic Gun 4 | 1 3 . . Ballistic Cannon . | . . . . Launcher 1 | . 1 . . Special Weapon . | . . . . Impact Weapon . | . . . . Slashing Weapon . | . . . . Piercing Weapon . | . . . . Special Melee Weapon . | . . . . Unidentified Prototypes . | . . . . Parts Lost 10 | . 2 2 6 Power 2 | . 1 . 1 Propulsion 4 | . . 1 3 Utility 1 | . . 1 . Weapon 3 | . 1 . 2 Highest Loss Streak 6 | . 2 1 6 To Critical Strikes 5 | . . 1 4 Average Slot Usage (%) 88 | . 93 86 73 Engine 13 | . 14 14 10 Leg 27 | . 27 28 28 Device 7 | . 17 1 . Processor 10 | . 4 14 14 Energy Gun 11 | . 6 14 9 Ballistic Gun 16 | . 21 14 10 Naked Turns . | . . . . Heaviest Build 12 | 4 12 11 9 Greatest Support 20 | 10 20 20 20 Greatest Overweight (x) 3 | . 3 . . Average Overweight (x) . | . . . . Largest Inventory Capacity 5 | 5 5 5 5 Average Capacity 5 | 5 5 5 5 Most Carried 5 | 4 5 5 5 Average Carried 4 | 2 4 4 4 Final Capacity 5 | 5 5 5 5 Final Carried 5 | 4 5 5 4 Class Distribution -------------------- 100% | Mutant Dominant Class ---------------- Mutant | -10/Materials Mutant | -10/Mines Mutant | -10/Exiles Resources | -11 -10 -10 -10 ----------- Run | Yrd Mat Min Exi Matter Collected 585 | 230 271 84 . Remotely . | . . . . Salvage Created 545 | . 326 219 . Parts 44 | . 29 15 . Haulers Intercepted . | . . . . Recyclers Shooed 1 | . 1 . . Parts Field Recycled . | . . . . Retrieved Matter . | . . . . Parts Self-Destructed . | . . . . Prevented . | . . . . Kills | -11 -10 -10 -10 ------- Run | Yrd Mat Min Exi Combat Hostiles Destroyed 19 | . 9 10 . Guns 16 | . 7 9 . AOE 3 | . 2 1 . Classes Destroyed 4 | . 4 . . Worker 1 | . 1 . . Watcher 3 | . 3 . . Swarmer 13 | . 5 8 . Grunt 6 | . 4 2 . Best Kill Streak 3 | . 3 3 . Combat Bots Only 3 | . 3 3 . Max Kills in Single Turn 2 | . 2 2 . Gunslinging 1 | . 1 . . Exploded 2 | . 2 1 . Melee . | . . . . Uniques/NPCs Destroyed . | . . . . Combat | -11 -10 -10 -10 -------- Run | Yrd Mat Min Exi Hostile Shots Fired 126 | . 51 47 28 Missed 44 | . 14 20 10 Damage Taken 992 | . 362 233 397 Core 267 | . 40 66 161 Absorbed by Shields . | . . . . Core Remaining (%) 100 | 100 . . . Volleys Fired 55 | . 33 22 . Largest 2 | . 2 2 . Hottest 60 | . 60 60 . Shots Fired 111 | . 66 44 1 Gun 110 | . 65 44 1 Cannon . | . . . . Launcher 1 | . 1 . . Special . | . . . . Kinetic 75 | . 52 22 1 Thermal . | . . . . Explosive 1 | . 1 . . Electromagnetic 35 | . 13 22 . Robot Hit Streak 6 | . 6 5 2 Robot Miss Streak 5 | . 5 4 . Penetration Max . | . . . . Secondary Targets 7 | . 4 3 . Max Gunslinging Chain 1 | . 1 1 . Shots Hit Robots 55 | . 33 21 1 Core Hits 33 | . 20 13 . Critical Kills . | . . . . Critical Parts Destroyed . | . . . . Critical Strikes 2 | . 1 1 . Corrupt 2 | . 1 1 . Melee Attacks . | . . . . Impact . | . . . . Slashing . | . . . . Piercing . | . . . . Sneak Attacks . | . . . . Combat Hostiles . | . . . . Follow-up Attacks . | . . . . Damage Inflicted 917 | . 566 338 13 Guns 788 | . 493 282 13 Cannons . | . . . . Explosions 129 | . 73 56 . Melee . | . . . . Ramming . | . . . . Kinetic 516 | . 373 130 13 Thermal 79 | . 23 56 . Explosive 50 | . 50 . . Electromagnetic 272 | . 120 152 . Impact . | . . . . Slashing . | . . . . Piercing . | . . . . Highest Corruption 1 | . 1 1 1 Average Corruption 1 | . 1 1 1 Corruption Purged . | . . . . Corruption Blocked . | . . . . Effects 17 | . 6 10 1 Message Errors 5 | . 3 2 . Matter Fused 2 | . 1 1 . Heat Flow Errors 4 | . 1 3 . Energy Discharges 2 | . . 2 . Data Loss (minor) 1 | . 1 . . Data Loss (major) 1 | . . 1 . Misfires 1 | . . . 1 Alerts 1 | . . 1 . Overload Shots . | . . . . Overflow Damage 5 | . 5 . . Projectiles . | . . . . Explosions 5 | . 5 . . Melee . | . . . . Knockbacks . | . . . . Impact . | . . . . Kinetic . | . . . . Secondary . | . . . . Self-Inflicted Damage 2 | . 2 . . Shots 1 | . 1 . . Rammed . | . . . . Targets Rammed . | . . . . Kicked . | . . . . Crushed . | . . . . Highest Temperature 265 | . 265 230 . Average Temperature 77 | . 88 73 . Received Heat Transfer 159 | . 114 45 . Siege Activations . | . . . . Robots Corrupted . | . . . . Combat Hostiles . | . . . . Parts Fried . | . . . . Impact Corruptions . | . . . . Robots Melted . | . . . . Combat Hostiles . | . . . . Parts Melted . | . . . . Heat Transferred 50 | . 50 . . Parts Sabotaged . | . . . . Parts Stolen . | . . . . Parts Stripped . | . . . . Power Chain Reactions 2 | . 1 1 . Alert | -11 -10 -10 -10 ------- Run | Yrd Mat Min Exi Peak Influence 245 | . 237 245 . Initial 57 | . . 57 . Average 81 | . 82 84 . Maximum Alert Level 1 | . 1 1 . Low Security (%) 91 | 100 93 88 . Level 1 8 | . 6 11 . Level 2 . | . . . . Level 3 . | . . . . Level 4 . | . . . . Level 5 . | . . . . High Security . | . . . . Max Security . | . . . . Squads Dispatched 2 | . 2 . . Investigation . | . . . . Extermination . | . . . . Reinforcement 2 | . 2 . . Assault . | . . . . Garrison . | . . . . Intercept . | . . . . Searches Triggered . | . . . . Construction Impeded . | . . . . Haulers Reinforced . | . . . . Active Scanning Responses . | . . . . Cargo Convoy Interrupts . | . . . . Stealth | -11 -10 -10 -10 --------- Run | Yrd Mat Min Exi Distress Signals 2 | . 2 . . Communications Jammed . | . . . . Distress Signals . | . . . . Times Spotted 39 | . 18 13 8 Peak Tracking Total 9 | . 5 3 9 Tactical Retreats 3 | . 1 2 . Traps | -11 -10 -10 -10 ------- Run | Yrd Mat Min Exi Traps Triggered 3 | . 3 . . Indirectly . | . . . . Trap Hack Attempts . | . . . . Triggered . | . . . . Disarmed . | . . . . Reprogrammed . | . . . . Reused . | . . . . Traps Extracted . | . . . . Installed . | . . . . Triggered . | . . . . Machines | -11 -10 -10 -10 ---------- Run | Yrd Mat Min Exi Machines Disabled 1 | . 1 . . Max in Single Turn 1 | . 1 . . Machines Repaired . | . . . . Machines Dismantled . | . . . . Machines Sabotaged . | . . . . Overloaded Fab Kills . | . . . . Hacking | -11 -10 -10 -10 --------- Run | Yrd Mat Min Exi Machines Accessed 1 | . . 1 . Terminals 1 | . . 1 . Fabricators . | . . . . Repair Stations . | . . . . Recycling Units . | . . . . Scanalyzers . | . . . . Garrison Access . | . . . . Total Hacks 1 | . . 1 . Successful 1 | . . 1 . Failed . | . . . . Catastrophic . | . . . . Database Lockouts . | . . . . Manual . | . . . . Terminals 1 | . . 1 . Fabricators . | . . . . Repair Stations . | . . . . Recycling Units . | . . . . Scanalyzers . | . . . . Garrison Access . | . . . . Terminal Hacks 1 | . . 1 . Record 1 | . . 1 . Fabricator Hacks . | . . . . Repair Station Hacks . | . . . . Recycling Unit Hacks . | . . . . Scanalyzer . | . . . . Garrison Access Hacks . | . . . . Unauthorized Hacks . | . . . . Terminals . | . . . . Fabricators . | . . . . Repair Stations . | . . . . Recycling Units . | . . . . Scanalyzers . | . . . . Garrison Access . | . . . . Data Cores Recovered . | . . . . Used . | . . . . Hacking Detections . | . . . . Full Trace Events . | . . . . Feedback Events . | . . . . Feedback Blocked . | . . . . Robot Schematics Acquired . | . . . . Robots Built . | . . . . Authchips . | . . . . Time . | . . . . Total Robot Build Rating . | . . . . Part Schematics Acquired . | . . . . Parts Built . | . . . . Authchips . | . . . . Time . | . . . . Total Part Build Rating . | . . . . Parts Repaired . | . . . . Time . | . . . . Parts Recycled . | . . . . Recycled Matter . | . . . . Retrieved Matter . | . . . . Retrieved Components . | . . . . Parts Scanalyzed . | . . . . Part Schematics Acquired . | . . . . Parts Damaged . | . . . . Bothacking | -11 -10 -10 -10 ------------ Run | Yrd Mat Min Exi Used RIF Installer . | . . . . Robots Hacked . | . . . . Non-combat . | . . . . Combat . | . . . . Robot Hacks Applied . | . . . . Relay Couplers Released . | . . . . Fabnet Peak Effective % . | . . . . Robots Rewired . | . . . . Allies Hacked . | . . . . Hacks Repelled . | . . . . Allies | -11 -10 -10 -10 -------- Run | Yrd Mat Min Exi Total Allies . | . . . . Largest Group . | . . . . Highest-Rated Group . | . . . . Highest-Rated Ally . | . . . . Total Orders . | . . . . Ally Attacks . | . . . . Total Damage . | . . . . Kills . | . . . . Allies Corrupted . | . . . . Allies Melted . | . . . . Intel | -11 -10 -10 -10 ------- Run | Yrd Mat Min Exi Robot Analysis Total . | . . . . Derelict Logs Recovered 2 | . . 2 . Drone Launches . | . . . . Drone Recoveries . | . . . . Exploration | -11 -10 -10 -10 ------------- Run | Yrd Mat Min Exi Turns Passed 2015 | 62 713 1145 95 Spaces Moved 1433 | 46 491 816 80 Core 11 | 4 4 . 3 Treads . | . . . . Legs 1422 | 42 487 816 77 Wheels . | . . . . Hover . | . . . . Flight . | . . . . Fastest Speed 50 | 50 120 120 50 Average Speed 119 | 113 120 120 117 Slowest Speed 200 | 120 200 120 120 Overloaded Moves . | . . . . Propulsion Burnouts . | . . . . Robots Hopped . | . . . . Cave-ins Triggered . | . . . . Exploration Rate (%) 44 | 3 71 93 10 Regions Visited 3 Branch Regions 2 Pre-discovered Areas 1 | . . 1 . Known Exits Taken 2 | . 1 1 . Unknown Exits Taken 1 | 1 . . . Scrap Searched 2 | . . 2 . Spaces Dug . | . . . . Terrain Destroyed 20 | . 12 8 . Melee . | . . . . Projectile . | . . . . AOE 20 | . 12 8 . Terrain Rammed . | . . . . Walls Destroyed . | . . . . Machines Disabled . | . . . . Actions | -11 -10 -10 -10 --------- Run | Yrd Mat Min Exi Total 1617 | 55 543 938 81 Wait 97 | . . 97 . Move 1430 | 45 490 815 80 Hop . | . . . . Pick Up 15 | 7 6 2 . Fast Attach 5 | . 5 . . Attach 10 | 3 5 1 1 Detach . | . . . . Swap 2 | . 2 . . Drop 3 | . 2 1 . Fire 55 | . 33 22 . Melee . | . . . . Ram . | . . . . Kick . | . . . . Crush . | . . . . Escape Stasis . | . . . . Rewire . | . . . . Trap . | . . . . Miscellaneous . | . . . . Route ------- -11/Scrapyard -10/Materials (discovered 4 exits: *Mat x2 / *Min x2) -10/Mines (discovered 3 exits: *Mat x2 / *Exi) -10/Exiles (discovered 1 exit: *Min) History --------- Turn | Location | Event 16 | -11/Scrapyard | Discovered new exit (range 16) 63 | -11/Scrapyard | Entered Materials 126 | -10/Materials | Discovered new exit (range 15) 313 | -10/Materials | Build established: Mutant 361 | -10/Materials | Discovered new exit (range 3) 510 | -10/Materials | Discovered new exit (range 8) 542 | -10/Materials | Identified exit to Mines 654 | -10/Materials | Discovered exit to Mines (range 16) 701 | -10/Materials | Identified exit to Materials 776 | -10/Materials | Entered Mines 834 | -10/Mines | Learned Materials emergency access door positions 851 | -10/Mines | Deemed a non-threat by the Exiles lab entrance 851 | -10/Mines | Discovered new exit (range 5) 854 | -10/Mines | Identified exit to Exiles 1181 | -10/Mines | Learned location of Zion (-7) 1256 | -10/Mines | Discovered exit to Materials (range 11) 1318 | -10/Mines | Received a Rocket Launcher from a helpful Derelict 1770 | -10/Mines | Discovered exit to Materials (range 6) 1921 | -10/Mines | Entered Exiles 1949 | -10/Exiles | Discovered new exit (range 15) 1974 | -10/Exiles | Met 8R-AWN 1980 | -10/Exiles | Attacked by the Exiles 1985 | -10/Exiles | Core integrity fell below 50% 2015 | -10/Exiles | Core integrity fell below 20% 2016 | -10/Exiles | Identified exit to Mines 2016 | -10/Exiles | Destroyed by 8R-AWN with 8R-AWN's Boregun Last Messages --------------- 01995_ Critical hit (Destroy). 01995_ Ion Engine destroyed. 01995_ HV Slug penetrates Wall. 01995_ Penetrated by HV Slug. 01995_ HV Slug penetrates Wall. 01997_ Penetrated by HV Slug. 01997_ Critical hit (Destroy). 01997_ Assault Rifle destroyed. 01997_ HV Slug penetrates Wall. 02011_ Penetrated by HV Slug. 02011_ HV Slug penetrates Wall. 02013_ Aluminum Leg destroyed. 02014_ Penetrated by HV Slug. 02014_ HV Slug penetrates Wall. 02014_ Penetrated by HV Slug. 02014_ Critical hit (Destroy). 02014_ Aluminum Leg destroyed. 02014_ HV Slug penetrates Wall. 02016_ EXIT=IDENTIFIED: MINES 02016_ Penetrated by HV Slug. Map ----- +----------------------------------------------------+ | ?????????????????????????????????????????????? | | ?????????????????????????????????????????????? | | ?????????????????????????????????????????????? | | ?????????????????????????????????????????????? | | ?????????????????????????????????????????????? | | ?????????????????????????????????????????????? | | ?????????????????????????????????????????????? | | ?????????????????????????????????????????????? | | ?????????????????????????????????????????????? | | ?????????????????????????????????????????????? | | ?????????????????????????????????????????????? | | ?????????????????????????????????????????????? | | ?????????????????????????????????????????????? | | ?????????????????????????????????????????????? | | ?????????????????????????????????????????????? | | ?????????????????????????????????????????????? | | ?????????????????????????????????????????????? | | ?????????????????????????????????????????????? | | ?????????????????????????????????????????????? | | ?????????????????????????????????????????????? | | ?????????????????????????????????????????????? | | ??????????????????????????###????????????????? | | ????????????????????????## #????????????????? | | ???????????????????????## #????????????????? | | ???????????????????????# > #????????????????? | | ???????????????????????# @ #????????????????? | | ???????????????????????# #????????????????? | | ??????????????????????## ##????????????????? | | ?????????????????????##aa ##????????????????? | | ?????????????????????# aa #????????????????? | | ?##??????????????????# #????????????????? | | ##" ????????????????## #????????????????? | | #" ??????????????## # #????????????????? | | #" "?????????????# a ###????????????????? | | ##?#######?###g a ##??????????????????? | | ##"""""### #???????????????????? | | # "# ##???????????????????? | | % * "#???????????????????? | | ???# #???????????????????? | | ???## "#??????????????????? | | ???#"""""#### ###????????????????? | | ???######???#### * ###??????????????? | | ???????????????##### ##?????????????? | | ???????????????????### #?????????????? | | ?????????????????????### #?????????????? | | ???????????????????????### #?????????????? | | ????????????????????????#" ##????????????? | | ????????????????????????#### ###??????????? | | ???????????????????????????# ##?????????? | | ???????????????????????????## ###???????? | +----------------------------------------------------+ Best States ------------- Heat Dissipation 25 Energy Generation 10 Energy Capacity 250 Matter Stores 300 Matter Capacity 300 Sight Range 16 Terrain Scan Range 14 Terrain Scan Density 10 ECM Strength 1 Evasion (%) 55 Authchip Count 1 Item Schematics ----------------- None Robot Schematics ------------------ None Fabricated ------------ Nothing Alien Tech Used ----------------- None Achievements -------------- None Challenges ------------ None Game ------ Seed TimingSpliceNetwork Manual? 0 Play Time 00:22:31 Cumulative 2.7 hours Start 2024.04.02 @ 11:20:21 End 2024.04.05 @ 15:54:43 Sessions 3 Manual Loads 0 Difficulty Rogue Special Mode None Game No. 4 Rogue 4 Adventurer 0 Explorer 0 Win Type - Total 0 Types 0/0/0/0/0/0/0/0/0 Lore% 2 Gallery% 6 Achievement% 7 Wizard Run 0 Options --------- Layout 1 ASCII 0 Keyboard 0 Movement Arrows Keybinds 0 Fullscreen 1 Font 16/TamsynBold Map View 50x40 Zoom Use 9% Tactical HUD 1 Map Filters NONE Filters NONE Steam SD RUN: 8eaaa96c-3f7b-411c-be2b-ca92578cc0cf